[Event "German Bundesliga 2021-22"]
[Site "Germany"]
[Date "2022.04.30"]
[Round "5.1"]
[White "Shevchenko, Kirill"]
[Black "Volokitin, Andrei"]
[Result "1-0"]
[ECO "B90"]
[WhiteElo "2652"]
[BlackElo "2687"]
[Annotator "TA"]
[PlyCount "69"]
[EventDate "2022.03.05"]
[EventType "team-tourn"]
[EventCountry "GER"]
[SourceTitle "playchess.com"]
[Source "ChessBase"]
[SourceQuality "1"]
[TimeControl "40/5400+30:1800+30"]

{[%evp 15,69,0,12,7,10,12,0,0,21,8,18,10,2,14,35,27,38,22,79,72,79,71,89,95,87,107,126,103,194,188,263,257,265,178,193,199,146,171,181,184,179,185,169,177,166,160,353,324,1486,1668,29987,29988,29988,29989,29997,29998]} 1. e4 {[%emt 0:00:00]} c5 {[%emt 0:00:00]} 2. Nc3 {[%emt 0:00:00]} d6 {[%emt 0:00:00]} 3. Nf3 {[%emt 0:00:00]} Nf6 {[%emt 0:00:00]} 4. d4 {[%emt 0:00:00]} cxd4 {[%emt 0:00:00]} 5. Nxd4 {[%emt 0:00:00]} a6 {[%emt 0:00:00]} 6. Bd3 {[%emt 0:00:00]} e5 {[%emt 0:00:00]} 7. Nde2 {[%emt 0:00:00]} Be7 {[%emt 0:00:00]} 8. O-O {[%emt 0:00:00]} O-O {[%emt 0:00:00]} 9. Ng3 {[%emt 0:00:09] B90: Sicilian Najdorf: Unusual White 6th moves, 6 Be3 Ng4 and 6 Be3 e5.} Be6 {[%emt 0:00:00]} 10. Nd5 {[%emt 0:01:49]} Bxd5 {[%emt 0:00:00]} (10... Nbd7 {is more complex.} 11. c4 Nc5 12. Be3 Nxd3 13. Bb6 Qe8) 11. exd5 {[%emt 0:00:03] The position is equal.} g6 {[%emt 0:00:00] Inhibits Nf5.} 12. a4 $5 {[%emt 0:01:44][%mdl 4] An interesting side line.} Nbd7 {[%emt 0:00:00]} 13. a5 {[%emt 0:00:39]} b5 {[%emt 0:00:00]} (13... Nxd5 {is interesting.} 14. Bh6 Re8 15. Bxg6 hxg6 16. Qxd5 Qc7) 14. c4 {[%emt 0:00:59]} b4 {[%emt 0:00:00] [#]} 15. Bc2 $146 {[%emt 0:02:12]} ({Predecessor:} 15. b3 Nc5 16. Bc2 Nfd7 17. Bd2 Rb8 18. Qe1 Rb7 19. Ne2 Bg5 20. Bxb4 Qb8 21. Ba3 Nxb3 22. Bxb3 Rxb3 {1-0 (63) Van Foreest,J (2632)-Volokitin,A (2633) Germany 2019}) 15... Qc7 {[%emt 0:47:16]} 16. b3 {[%emt 0:05:33]} Nc5 {[%emt 0:10:52]} (16... Rab8 $11) 17. f4 $16 {[%emt 0:04:31] White leaves nothing to chance now.} exf4 {[%emt 0:15:22]} 18. Bxf4 {[%emt 0:07:04]} Nfd7 {[%emt 0:04:16] [#]} 19. Nf5 $1 {[%emt 0:21:25]} gxf5 {[%emt 0:02:39]} 20. Bxf5 {[%emt 0:11:49]} Nf6 {[%emt 0:00:35]} 21. Rf3 {[%emt 0:08:57][%cal Bf1f3,Bf3e3,Be3h3][%mdl 1056] Threatens to win with Qd4. White has strong compensation.} Rfe8 {[%emt 0:07:00]} (21... Nce4 $2 22. Qe1 Rfe8 23. Re3 $18 (23. Bxe4 Nxe4 24. Qxe4 Bf6 $18)) (21... Ncd7 $16) 22. Qd4 $1 $18 {[%emt 0:20:42]} Qa7 {[%emt 0:12:41]} (22... Nce4 $142) 23. Be3 {[%emt 0:09:05] A strong pair of Bishops.} Bd8 {[%emt 0:00:10][%cal Oe8e3]} (23... Nxb3 24. Qh4 Nxa1 25. Bxa7 Rxa7 26. Rh3 $18) 24. Qf4 {[%emt 0:01:52] White threatens Rg3+ and mate.} Rxe3 {[%emt 0:00:59]} 25. Rxe3 {[%emt 0:00:03]} (25. Qxe3 Ncd7 $11) 25... Ncd7 {[%emt 0:00:28]} (25... Nxb3 26. Rd1 Nxa5 27. Kh1 $18) 26. Kh1 {[%emt 0:02:50] 0x0.0005ebddc807dp-1022s more active pieces.} Ne5 {[%emt 0:00:07] [#]} 27. Rae1 $1 {[%emt 0:00:58]} Be7 {[%emt 0:00:54]} 28. g4 {[%emt 0:01:16][%cal Bg2g4,Bg4g5][%mdl 32] Hoping for g5.} Bf8 {[%emt 0:00:32]} 29. g5 $36 {[%emt 0:00:25][%mdl 2048] White is in control.} Nfd7 {[%emt 0:00:14] [#]} (29... Nh5 $2 30. Qh4 Ng6 31. Qxh5 $18) 30. Rh3 $1 {[%emt 0:00:46]} (30. Qh4 Ng6 31. Qg3 Nde5 $11) 30... Ng6 $2 {[%emt 0:00:30]} (30... Bg7 $16 {was necessary.}) 31. Bxg6 {[%emt 0:00:37]} hxg6 $2 {[%emt 0:00:42] [#]} (31... fxg6 32. Rxh7 Kxh7 33. Qf7+ Bg7) 32. Re7 $3 {[%emt 0:00:27][%mdl 512]} Bxe7 {[%emt 0:00:41]} (32... Ne5 33. Rxa7) 33. Qh4 {[%emt 0:00:01][%csl Gh3][%cal Rh4h8] White mates.} Qd4 {[%emt 0:00:31]} 34. Qxd4 {[%emt 0:00:04][%csl Gh3][%cal Rd4h8]} Ne5 {[%emt 0:00:09]} 35. Qh4 {[%emt 0:00:04] Weighted Error Value: White=0.05 (flawless) /Black=0.29 (precise)} 1-0

[Event "German Bundesliga 2021-22"]
[Site "Germany"]
[Date "2022.04.30"]
[Round "5.1"]
[White "Postny, Evgeny"]
[Black "Huschenbeth, Niclas"]
[Result "1/2-1/2"]
[ECO "E54"]
[WhiteElo "2567"]
[BlackElo "2611"]
[Annotator "TA"]
[PlyCount "190"]
[EventDate "2022.03.05"]
[EventType "team-tourn"]
[EventCountry "GER"]
[SourceTitle "playchess.com"]
[Source "ChessBase"]
[SourceQuality "1"]
[TimeControl "40/5400+30:1800+30"]

{[%evp 92,190,-5,-5,-6,-6,-6,-6,-6,-6,0,-6,-6,-8,-8,-8,-8,-8,-7,-7,0,0,0,0,0,-8,-8,-8,-8,-8,-8,-8,-8,-8,-8,-8,-8,-8,-8,-8,-8,-8,-8,-8,-8,-8,-8,-8,-8,-13,-8,-8,-8,-8,-8,-8,-8,-8,0,-8,0,-8,0,-8,0,-13,-13,-13,-13,-52,-52,-52,-13,-52,-52,-52,-52,-52,-52,-52,-52,-52,-52,-52,-52,-52,-52,-52,-52,-52,-52,-52,-52,-52,-52,-52,-52,-52,-8,-8,-8]} 1. d4 {[%emt 0:00:00]} Nf6 {[%emt 0:00:00]} 2. c4 {[%emt 0:00:00]} e6 {[%emt 0:00:00]} 3. Nc3 {[%emt 0:00:00]} Bb4 {[%emt 0:00:00]} 4. e3 {[%emt 0:00:00]} O-O {[%emt 0:00:00]} 5. Nf3 {[%emt 0:00:00]} d5 {[%emt 0:00:00]} 6. Bd3 {[%emt 0:00:00]} dxc4 {[%emt 0:00:00]} 7. Bxc4 {[%emt 0:00:00]} c5 {[%emt 0:00:00]} 8. O-O {[%emt 0:00:00]} cxd4 {[%emt 0:00:00]} 9. exd4 {[%emt 0:00:00]} b6 {[%emt 0:00:00]} 10. Bg5 {[%emt 0:00:00]} h6 {[%emt 0:00:00]} 11. Bh4 {[%emt 0:00:00]} Bb7 {[%emt 0:00:00]} 12. Rc1 {[%emt 0:02:33]} Nc6 {[%emt 0:00:00]} 13. Bd3 {[%emt 0:05:54]} Be7 {[%emt 0:00:56]} 14. Bb1 {[%emt 0:03:26]} Nh5 {[%emt 0:07:27]} 15. Bg3 {[%emt 0:09:49]} Nxg3 {[%emt 0:00:42]} 16. hxg3 {[%emt 0:00:05]} Bf6 {[%emt 0:17:08]} 17. d5 {[%emt 0:09:23]} exd5 {[%emt 0:00:16]} 18. Nxd5 {[%emt 0:00:16]} Re8 {[%emt 0:10:36]} 19. Qd3 {[%emt 0:12:11]} g6 {[%emt 0:00:22]} 20. Nxf6+ {[%emt 0:00:33]} Qxf6 {[%emt 0:00:06]} 21. Qc3 {[%emt 0:01:43]} Kg7 {[%emt 0:19:07]} 22. Rfd1 {[%emt 0:05:45]} Rad8 {[%emt 0:03:35]} 23. Rxd8 {[%emt 0:09:51]} Rxd8 {[%emt 0:07:01]} 24. Qxf6+ {[%emt 0:06:15]} Kxf6 {[%emt 0:00:04]} 25. a3 {[%emt 0:00:05]} g5 {[%emt 0:06:27]} 26. Be4 {[%emt 0:09:17]} Rd6 {[%emt 0:12:01]} 27. Re1 {[%emt 0:19:30]} Re6 {[%emt 0:09:54]} 28. Nd2 {[%emt 0:02:09]} Kg7 {[%emt 0:02:56]} 29. Re3 {[%emt 0:01:07]} Rd6 {[%emt 0:01:45]} 30. Rd3 {[%emt 0:00:25]} Rxd3 {[%emt 0:00:15]} 31. Bxd3 {[%emt 0:00:04]} Kf6 {[%emt 0:01:13]} 32. f4 {[%emt 0:00:35]} Nd4 {[%emt 0:00:55]} 33. Kf2 {[%emt 0:00:18]} Ke6 {[%emt 0:01:27]} 34. Ke3 {[%emt 0:02:40]} Nf5+ {[%emt 0:00:20]} 35. Kf2 {[%emt 0:00:05]} f6 {[%emt 0:01:30]} 36. Nb1 {[%emt 0:02:33]} Nd4 {[%emt 0:01:33]} 37. Nc3 {[%emt 0:00:52]} Bc6 {[%emt 0:00:29]} 38. b4 {[%emt 0:01:11]} Nf5 {[%emt 0:00:33]} 39. Bc2 {[%emt 0:00:48]} Nd6 {[%emt 0:00:37]} 40. Bb3+ {[%emt 0:00:27]} Kf5 {[%emt 0:00:28]} 41. Bc2+ {[%emt 0:30:15]} Ke6 {[%emt 0:30:08]} 42. Bb3+ {[%emt 0:00:07]} Kd7 {[%emt 0:00:00]} 43. Bg8 {[%emt 0:00:00]} a5 {[%emt 0:00:00]} 44. Bb3 {[%emt 0:00:00]} axb4 {[%emt 0:00:00]} 45. axb4 {[%emt 0:00:00]} Ne4+ {[%emt 0:00:00]} 46. Nxe4 {[%emt 0:00:00]} Bxe4 {[%emt 0:00:00]} 47. Bc4 {[%emt 0:00:00]} Kd6 {[%emt 0:00:00]} 48. Bb3 {[%emt 0:00:00]} Kc6 {[%emt 0:00:00]} 49. Bc4 $1 {[%emt 0:00:00]} Kd7 {[%emt 0:00:00]} 50. Bf7 {[%emt 0:00:00]} Kd6 {[%emt 0:00:00]} 51. Bb3 {[%emt 0:00:00]} Bd5 {[%emt 0:00:00]} 52. Bc2 {[%emt 0:00:00]} Ke6 {[%emt 0:00:00]} 53. Bd3 {[%emt 0:00:00]} Bc6 {[%emt 0:00:00]} 54. Be2 $1 {[%emt 0:00:00]} Be4 {[%emt 0:00:00]} 55. Ba6 {[%emt 0:00:00]} h5 {[%emt 0:04:23]} 56. Bc4+ {[%emt 0:00:00]} Kf5 {[%emt 0:00:40]} 57. Be2 {[%emt 0:00:00]} gxf4 {[%emt 0:01:59]} 58. Bxh5 {[%emt 0:00:03]} fxg3+ {[%emt 0:00:06]} 59. Kxg3 {[%emt 0:00:07]} Ke5 {[%emt 0:00:11]} 60. Be8 {[%emt 0:04:37]} Kd4 {[%emt 0:01:26]} 61. Kf2 {[%emt 0:04:00]} Kc4 {[%emt 0:01:11]} 62. b5 {[%emt 0:00:05]} Kc5 {[%emt 0:00:36]} 63. g4 {[%emt 0:00:06]} Kd4 {[%emt 0:00:57]} 64. Bd7 {[%emt 0:01:09]} Bd5 {[%emt 0:00:35]} (64... Ke5 $5 {[%cal Re5f4]}) 65. Bc6 {[%emt 0:01:38]} Be6 {[%emt 0:00:27]} 66. Kf3 {[%emt 0:00:16]} Ke5 {[%emt 0:00:04]} 67. Be8 {[%emt 0:00:13]} Bb3 {[%emt 0:00:28]} 68. Bc6 {[%emt 0:00:21]} Bd1+ {[%emt 0:00:15]} 69. Kg3 {[%emt 0:00:05]} Be2 {[%emt 0:00:07]} 70. Be8 {[%emt 0:00:09]} Bd3 {[%emt 0:01:32]} 71. Bc6 {[%emt 0:00:40]} Bg6 {[%emt 0:00:20]} 72. Kf3 {[%emt 0:00:18]} Bf7 {[%emt 0:00:18]} 73. Ke3 {[%emt 0:00:13]} Bc4 {[%emt 0:00:22]} 74. Kf3 {[%emt 0:00:15]} Be6 {[%emt 0:00:23]} 75. Kg3 {[%emt 0:00:09]} Bb3 {[%emt 0:01:09]} 76. Kf3 {[%emt 0:00:20]} Bd1+ {[%emt 0:00:06]} 77. Kg3 {[%emt 0:00:05]} Be2 {[%emt 0:00:15]} 78. Be8 {[%emt 0:00:13]} Ke4 {[%emt 0:00:19]} 79. Bc6+ {[%emt 0:00:24]} Ke3 {[%emt 0:00:04]} 80. Bd7 {[%emt 0:00:08]} Bd3 {[%emt 0:00:47]} 81. Be8 {[%emt 0:00:42]} Be4 {[%emt 0:00:29]} 82. Bc6 {[%emt 0:00:14]} Bg6 {[%emt 0:00:37]} 83. Bd7 {[%emt 0:00:24]} Bf7 {[%emt 0:00:47]} 84. Bc6 {[%emt 0:00:26]} Be6 {[%emt 0:00:25]} 85. Be8 {[%emt 0:00:06]} f5 {[%emt 0:00:27]} 86. gxf5 {[%emt 0:00:36]} Bxf5 {[%emt 0:00:04]} 87. Bc6 {[%emt 0:00:23]} Bd3 {[%emt 0:00:18]} 88. Be8 $1 {[%emt 0:00:11]} Kd4 {[%emt 0:00:35]} 89. Kf2 {[%emt 0:00:06]} Kc5 {[%emt 0:00:06]} 90. Ke3 {[%emt 0:00:23]} Bxb5 {[%emt 0:00:03]} 91. Bg6 {[%emt 0:00:12]} Kc4 {[%emt 0:01:31]} 92. Kd2 {[%emt 0:00:09]} Kb3 {[%emt 0:00:07]} 93. Kc1 {[%emt 0:00:08]} Bc4 {[%emt 0:00:22]} 94. Be8 {[%emt 0:00:12]} b5 {[%emt 0:00:04]} 95. Bxb5 $1 {[%emt 0:00:04]} Bxb5 {[%emt 0:00:02]} 1/2-1/2

[Event "German Bundesliga 2021-22"]
[Site "Germany"]
[Date "2022.04.30"]
[Round "5.1"]
[White "Khenkin, Igor"]
[Black "Harikrishna, Pentala"]
[Result "0-1"]
[ECO "E10"]
[WhiteElo "2509"]
[BlackElo "2719"]
[Annotator "TA"]
[PlyCount "52"]
[EventDate "2022.03.05"]
[EventType "team-tourn"]
[EventCountry "GER"]
[SourceTitle "playchess.com"]
[Source "ChessBase"]
[SourceQuality "1"]
[TimeControl "40/5400+30:1800+30"]

{[%evp 9,52,-1,0,3,13,0,14,5,9,4,12,0,0,0,0,-7,0,0,0,-6,0,-9,0,-20,25,-21,-9,-117,-124,-211,-201,-212,-211,-267,-262,-350,-350,-354,-371,-430,-425,-437,-425,-457,-445]} 1. d4 {[%emt 0:00:00]} Nf6 {[%emt 0:00:00]} 2. c4 {[%emt 0:00:00]} e6 {[%emt 0:00:00]} 3. Nf3 {[%emt 0:00:00]} d5 {[%emt 0:00:00]} 4. e3 {[%emt 0:00:00]} Nbd7 {[%emt 0:00:00]} 5. Nbd2 {[%emt 0:00:00]} c5 {[%emt 0:00:00]} 6. b3 {[%emt 0:00:00] D30: Queen's Gambit Declined: Systems without Nc3.} b6 {[%emt 0:00:00]} 7. Bb2 {[%emt 0:00:00]} Bb7 {[%emt 0:00:00]} 8. Bd3 {[%emt 0:00:00] The position is equal.} dxc4 $5 {[%emt 0:02:31][%mdl 4] Leaves trodden paths.} 9. bxc4 {[%emt 0:00:00]} Qc7 {[%emt 0:03:39]} 10. O-O {[%emt 0:00:39][%cal Od4d5]} Bd6 {[%emt 0:01:06] [#]} 11. a4 $146 {[%emt 0:14:24]} ({Predecessor:} 11. Rc1 O-O 12. Qe2 Rfe8 13. Bb1 cxd4 14. exd4 e5 15. d5 e4 16. Nd4 Bxh2+ 17. Kh1 {1-0 (40) Johansson,R (2095)-Welin,M (2242) Gothenburg 2004}) 11... O-O {[%emt 0:09:35]} 12. a5 {[%emt 0:04:31]} cxd4 {[%emt 0:04:14]} 13. exd4 {[%emt 0:00:23]} e5 {[%emt 0:02:46]} 14. axb6 {[%emt 0:19:16]} axb6 {[%emt 0:00:08]} 15. d5 {[%emt 0:09:24]} Nc5 {[%emt 0:12:22]} 16. Qc2 {[%emt 0:06:22]} Rae8 {[%emt 0:09:20]} 17. Rfe1 {[%emt 0:01:21]} (17. Ng5 {is superior.}) 17... b5 $11 {[%emt 0:01:17]} 18. cxb5 {[%emt 0:18:10] [#]} (18. Ng5 $11) 18... e4 $1 $17 {[%emt 0:01:01]} 19. Nxe4 {[%emt 0:19:17]} (19. Rxe4 $17 Nfxe4 20. Nxe4 Nxe4 21. Bxe4 Qxc2 22. Bxc2) 19... Ncxe4 $19 {[%emt 0:04:59]} ({Inferior is} 19... Nfxe4 20. Rxe4 Nxe4 21. Bxe4 Qxc2 22. Bxc2 $17) 20. Qxc7 {[%emt 0:04:21]} Bxc7 {[%emt 0:00:16]} 21. Bxe4 {[%emt 0:01:24]} Rxe4 {[%emt 0:03:03]} 22. Bxf6 {[%emt 0:00:33]} Rxe1+ {[%emt 0:00:07]} 23. Rxe1 {[%emt 0:00:09] Strongly threatening Be7.} gxf6 {[%emt 0:00:04]} 24. b6 {[%emt 0:01:42]} Bxb6 {[%emt 0:07:55] Black is clearly winning.} 25. Rb1 {[%emt 0:00:01] [#]} Ra8 $1 {[%emt 0:00:11][%cal Oa8a2]} 26. h3 {[%emt 0:00:41] [#]} (26. Nd2 Ra6) 26... Bc7 $1 {[%emt 0:00:47] Weighted Error Value: White=0.35/Black=0.05 (flawless)} 0-1

[Event "German Bundesliga 2021-22"]
[Site "Germany"]
[Date "2022.04.30"]
[Round "5.2"]
[White "Van Foreest, Jorden"]
[Black "Bjerre, Jonas Buhl"]
[Result "1-0"]
[ECO "C42"]
[WhiteElo "2702"]
[BlackElo "2586"]
[Annotator "TA"]
[PlyCount "105"]
[EventDate "2022.03.05"]
[EventType "team-tourn"]
[EventCountry "GER"]
[SourceTitle "playchess.com"]
[Source "ChessBase"]
[SourceQuality "1"]
[TimeControl "40/5400+30:1800+30"]

{[%evp 9,105,12,15,2,18,18,16,11,11,29,18,-9,-22,-19,-22,-16,-12,0,0,0,0,-36,28,24,27,31,23,32,28,35,38,37,33,29,41,38,30,23,20,21,40,39,64,77,79,56,50,54,56,38,47,35,31,0,177,166,201,208,178,207,201,192,204,207,193,196,201,192,196,172,161,160,175,183,192,192,192,192,194,191,210,194,407,415,418,412,552,338,388,261,273,269,302,300,600,600,524,497]} 1. e4 {[%emt 0:00:00]} e5 {[%emt 0:00:00]} 2. Nf3 {[%emt 0:00:00]} Nf6 {[%emt 0:00:00]} 3. Nxe5 {[%emt 0:00:00][%cal Bf3e5,Be5d3,Bd3f4,Bf4d5][%mdl 32]} d6 {[%emt 0:00:00]} 4. Nd3 {[%emt 0:00:00]} Nxe4 {[%emt 0:00:00]} 5. Qe2 {[%emt 0:00:00]} Qe7 {[%emt 0:00:00]} 6. Nf4 {[%emt 0:00:00] And now Nd5 would win. C42: Petroff Defence: 3 Nxe5 and unusual White 3rd moves.} Nc6 {[%emt 0:00:00][%cal Bb8c6,Bc6d4,Bd4e2][%mdl 32] Threatens to win with ...Nd4.} 7. Nd5 {[%emt 0:00:00]} Nd4 {[%emt 0:00:38][%csl LRc2,LRe2]} 8. Nxe7 {[%emt 0:00:00] The position is equal.} Nxe2 {[%emt 0:00:12]} 9. Nd5 {[%emt 0:00:00]} Nd4 {[%emt 0:01:53] [#]} 10. d3 $5 $146 {[%emt 0:00:00][%mdl 8] New and interesting.} ({Predecessor:} 10. Na3 Ne6 11. f3 N4c5 12. d4 Nd7 13. c3 c6 14. Nf4 Nb6 15. Nc4 Nxc4 16. Bxc4 {½-½ (28) Ibarra Jerez,J (2558)-Deac,B (2639) Chess.com INT 2021}) 10... Nxc2+ {[%emt 0:04:19]} 11. Kd1 {[%emt 0:00:00]} Nxa1 {[%emt 0:01:20]} 12. dxe4 {[%emt 0:00:00]} Kd8 {[%emt 0:00:42]} 13. Bg5+ {[%emt 0:00:00]} f6 {[%emt 0:03:49]} 14. Be3 {[%emt 0:00:00]} c6 {[%emt 0:07:59]} 15. Nf4 {[%emt 0:00:00]} f5 {[%emt 0:15:16]} (15... g5 $15 16. Ne2 Be6) 16. exf5 $1 $11 {[%emt 0:19:53]} Bxf5 {[%emt 0:01:48]} 17. Bd3 {[%emt 0:00:24]} Bxd3 {[%emt 0:03:04]} 18. Nxd3 {[%emt 0:00:14]} a5 {[%emt 0:03:54][%cal Ba7a5,Ba5a4][%mdl 32]} 19. Kd2 {[%emt 0:04:41]} a4 {[%emt 0:02:18]} 20. Nc3 {[%emt 0:02:56]} Nb3+ {[%emt 0:02:12]} 21. axb3 {[%emt 0:00:07]} axb3 {[%emt 0:00:07]} 22. Nc1 {[%emt 0:00:40]} Ra1 {[%emt 0:03:45]} 23. Nd1 {[%emt 0:00:29][%mdl 1024] White has compensation.} Be7 {[%emt 0:07:20]} 24. Nxb3 {[%emt 0:00:39]} Ra4 {[%emt 0:06:34]} 25. Nc3 {[%emt 0:02:58]} Rb4 {[%emt 0:01:01]} 26. Kc2 {[%emt 0:00:17]} Bf6 {[%emt 0:02:59]} 27. Rd1 {[%emt 0:07:01]} d5 {[%emt 0:02:04]} 28. Bc5 {[%emt 0:01:47]} Rh4 {[%emt 0:03:48]} 29. Bd6 {[%emt 0:00:33]} Kd7 {[%emt 0:01:36]} 30. Bg3 $36 {[%emt 0:03:31][%mdl 2048] White is pushing.} Rc4 {[%emt 0:00:54] Inhibits Nc5+.} 31. Ra1 {[%emt 0:00:15] Ra7 is the strong threat.} b6 $2 {[%emt 0:10:08] White now steadily converts the win.} (31... Re8 $11) 32. Nd2 {[%emt 0:06:08]} Rb4 {[%emt 0:03:00]} 33. Ra7+ {[%emt 0:03:45]} Ke6 {[%emt 0:00:05]} 34. Rc7 {[%emt 0:00:10]} c5 {[%emt 0:01:03]} 35. Rc6+ $1 {[%emt 0:00:09]} Kf7 {[%emt 0:01:11]} 36. Nxd5 {[%emt 0:02:05]} Rxb2+ {[%emt 0:00:30]} 37. Kc1 $1 {[%emt 0:00:06]} Rd8 {[%emt 0:03:36] [#]} 38. Nc4 $1 {[%emt 0:02:45] Really sharp! Pair of Knights!} Rb3 {[%emt 0:02:47]} 39. Ncxb6 {[%emt 0:04:13]} ({Resist} 39. Ndxb6 $6 Rc3+ 40. Kb2 Bd4 $16) 39... Bd4 {[%emt 0:01:48]} 40. Rc7+ {[%emt 0:01:34]} Kg8 {[%emt 0:03:35] [#]} 41. Ne7+ $1 {[%emt 0:40:16]} Kf8 {[%emt 0:00:00] [#]} 42. Nc6 $1 {[%emt 0:00:00]} Re8 {[%emt 0:00:00]} 43. Nd5 {[%emt 0:00:00]} Re1+ {[%emt 0:05:40]} 44. Kd2 {[%emt 0:00:00]} Rbb1 {[%emt 0:00:21]} 45. Ne3 {[%emt 0:00:00] Against Rbd1+} Bf6 $2 {[%emt 0:04:22]} (45... Bxe3+ 46. fxe3 Rg1 47. Rc8+ Kf7) 46. Bd6+ $18 {[%emt 0:00:00]} Ke8 {[%emt 0:02:21]} 47. Ne5 {[%emt 0:00:00]} Kd8 {[%emt 0:01:16] Inhibits Rc8+.} 48. Nd3 {[%emt 0:00:00]} Rg1 {[%emt 0:01:11]} 49. Rxc5 {[%emt 0:00:00]} Bd4 {[%emt 0:00:30]} 50. Rc7 {[%emt 0:00:00] Strongly threatening Nf5.} Bxe3+ {[%emt 0:03:59]} 51. Kxe3 {[%emt 0:00:00]} Rxg2 {[%emt 0:01:18]} (51... Rb6 52. Bg3 (52. Rxg7 Rxd6 53. Rxh7 Rxg2 $11) 52... Re6+ 53. Kf3 Rf6+ 54. Ke3 Re6+ 55. Kd2 Re7) 52. Ne5 {[%emt 0:00:00] aiming for Nc6+.} Rd1 {[%emt 0:04:48] [#]} 53. Rb7 $1 {[%emt 0:00:00] Weighted Error Value: White=0.10 (very precise) /Black=0.34} 1-0

[Event "German Bundesliga 2021-22"]
[Site "Germany"]
[Date "2022.04.30"]
[Round "5.2"]
[White "Kasimdzhanov, Rustam"]
[Black "Piorun, Kacper"]
[Result "1-0"]
[ECO "D38"]
[WhiteElo "2659"]
[BlackElo "2641"]
[Annotator "TA"]
[PlyCount "75"]
[EventDate "2022.03.05"]
[EventType "team-tourn"]
[EventCountry "GER"]
[SourceTitle "playchess.com"]
[Source "ChessBase"]
[SourceQuality "1"]
[TimeControl "40/5400+30:1800+30"]

{[%evp 12,75,13,20,30,21,17,17,15,22,17,6,21,3,6,0,0,0,0,0,10,0,0,0,82,87,142,151,143,153,162,155,151,151,155,153,154,184,174,168,206,205,196,200,256,222,212,233,252,156,202,194,235,221,228,106,188,114,392,380,407,401,789,783,702,684]} 1. d4 {[%emt 0:00:00]} Nf6 {[%emt 0:00:00]} 2. c4 {[%emt 0:00:00]} e6 {[%emt 0:00:00]} 3. Nf3 {[%emt 0:00:00]} d5 {[%emt 0:00:00]} 4. Nc3 {[%emt 0:00:00]} Bb4 {[%emt 0:00:00]} 5. cxd5 {[%emt 0:00:00]} exd5 {[%emt 0:00:00]} 6. Bg5 {[%emt 0:00:00]} h6 {[%emt 0:00:00]} 7. Bh4 {[%emt 0:00:00]} Nbd7 {[%emt 0:05:00] 7...Bf5 is setting a new trend. D38: Queen's Gambit Declined: Ragozin Defence (4 Nf3 Bb4).} 8. e3 {[%emt 0:00:00]} g5 {[%emt 0:03:30]} 9. Bg3 {[%emt 0:00:00]} Ne4 {[%emt 0:00:30] The position is equal.} 10. Nd2 {[%emt 0:00:00]} Nxg3 {[%emt 0:03:30]} 11. hxg3 {[%emt 0:00:00]} c6 {[%emt 0:00:30]} 12. Qc2 {[%emt 0:06:30]} Nb6 {[%emt 0:06:30]} 13. Bd3 {[%emt 0:05:30]} Be6 {[%emt 0:07:30]} 14. a3 {[%emt 0:03:30]} Bd6 {[%emt 0:05:30]} 15. O-O-O {[%emt 0:01:30]} Qe7 {[%emt 0:02:30]} 16. e4 {[%emt 0:08:30]} dxe4 {[%emt 0:03:30]} 17. Bxe4 {[%emt 0:02:30] [#]} Nd5 $146 {[%emt 0:13:30]} (17... Bc7 $11 {keeps the balance.}) ({Predecessor:} 17... Bc7 18. Nb3 O-O-O 19. Bf5 Kb8 20. Rhe1 Bxb3 21. Rxe7 Bxc2 22. Kxc2 Rhf8 23. g4 Nd5 24. Nxd5 Rxd5 {½-½ (33) Akobian,V (2625)-Lenderman,A (2587) Saint Louis 2012}) 18. Rde1 $16 {[%emt 0:05:30]} Rc8 {[%emt 0:25:30]} (18... Kf8 $142) 19. Bf5 {[%emt 0:04:30]} Kd7 {[%emt 0:00:30][%cal Od6a3]} 20. Bxe6+ {[%emt 0:03:30]} fxe6 {[%emt 0:00:00] [#]} 21. Nce4 $1 {[%emt 0:00:30] Hoping for Nc4.} b6 {[%emt 0:02:00]} 22. Kb1 {[%emt 0:07:30]} Bb8 {[%emt 0:05:27]} 23. Rc1 {[%emt 0:03:30]} Qg7 {[%emt 0:01:36]} 24. Qa4 {[%emt 0:08:30]} Rhe8 {[%emt 0:04:46]} 25. Nf3 {[%emt 0:07:30] Pair of Knights!} g4 {[%emt 0:01:50]} 26. Ne5+ {[%emt 0:01:30]} Bxe5 {[%emt 0:00:05]} 27. dxe5 {[%emt 0:00:30] Strongly threatening Nf6+.} Qxe5 {[%emt 0:02:28]} 28. Qxa7+ {[%emt 0:00:30]} Rc7 {[%emt 0:00:09]} 29. Qa4 {[%emt 0:00:00]} h5 {[%emt 0:00:28]} 30. Ka1 {[%emt 0:03:00]} Rf8 {[%emt 0:02:18]} (30... Qh8 $16 {keeps fighting.} 31. Qd1 (31. Rhd1 Ra8 $16) 31... Ke7) 31. Rhe1 $18 {[%emt 0:01:30][%cal Oe4c5] Black must now prevent Nc5+!} Qg7 {[%emt 0:00:32]} 32. Re2 {[%emt 0:01:30]} ({But not} 32. Red1 $6 Qg6 33. Re1 (33. Qb4 c5 $14) 33... Qg7 $16) 32... Qg6 {[%emt 0:03:10]} 33. Nc3 {[%emt 0:06:30]} (33. Rce1 $18 {has better winning chances.}) 33... Rf5 {[%emt 0:02:09] [#]} (33... Nxc3 $16 {was worth a try.} 34. Rxc3 Rf5) 34. Rec2 {[%emt 0:01:30]} (34. Rd1 $1 $18) 34... Rf8 $2 {[%emt 0:01:42][%mdl 8192] [#] Loses the game.} (34... Nxc3 $16 35. Rxc3 b5) 35. Nb5 $1 {[%emt 0:04:40][%mdl 512]} cxb5 {[%emt 0:00:30]} (35... Qxc2 36. Rxc2) 36. Qxb5+ {[%emt 0:00:06]} Kc8 {[%emt 0:00:33]} (36... Ke7 $142 37. Rxc7+ Nxc7 38. Rxc7+ Kf6) 37. Qa6+ {[%emt 0:01:01]} Kd7 {[%emt 0:00:45]} 38. Qa4+ {[%emt 0:03:29] Weighted Error Value: White=0.13 (very precise) /Black=0.31} 1-0